[Event "Early-Titled-Tuesday-Blitz-March-26-2024"]
[Site "Chess.com"]
[Date "2024.03.26"]
[Round "11"]
[White "AlainBruxelles"]
[Black "noblerone"]
[Result "1-0"]
[WhiteElo "2402"]
[BlackElo "2526"]
[TimeControl "180+1"]
[EndTime "10:03:53 PDT"]
[Termination "AlainBruxelles won by resignation"]

1. e4 {[%clk 0:03:00.9]} 1... c5 {[%clk 0:02:58.7]} 2. Nf3 {[%clk 0:02:59.4]}
2... e6 {[%clk 0:02:54.8]} 3. c3 {[%clk 0:02:58.3]} 3... Nf6 {[%clk 0:02:54]} 4.
e5 {[%clk 0:02:58.2]} 4... Nd5 {[%clk 0:02:53.6]} 5. a3 {[%clk 0:02:58.6]} 5...
Nc6 {[%clk 0:02:48.9]} 6. d4 {[%clk 0:02:58.4]} 6... cxd4 {[%clk 0:02:48.9]} 7.
cxd4 {[%clk 0:02:58.6]} 7... d6 {[%clk 0:02:48.1]} 8. Bd3 {[%clk 0:02:57.6]}
8... Be7 {[%clk 0:02:44.2]} 9. O-O {[%clk 0:02:56.8]} 9... O-O {[%clk
0:02:42.9]} 10. Nc3 {[%clk 0:02:56.7]} 10... Nxc3 {[%clk 0:02:41.2]} 11. bxc3
{[%clk 0:02:56.8]} 11... b6 {[%clk 0:02:33.5]} 12. Bf4 {[%clk 0:02:45.6]} 12...
dxe5 {[%clk 0:02:27]} 13. dxe5 {[%clk 0:02:45.2]} 13... Bb7 {[%clk 0:02:25.7]}
14. Qc2 {[%clk 0:02:45.8]} 14... h6 {[%clk 0:02:25.1]} 15. Rad1 {[%clk 0:02:33]}
15... Qc7 {[%clk 0:02:24.9]} 16. Qe2 {[%clk 0:02:31.1]} 16... Na5 {[%clk
0:02:01.2]} 17. Bb1 {[%clk 0:02:27.8]} 17... Qxc3 {[%clk 0:01:46.2]} 18. Nd4
{[%clk 0:02:21]} 18... Bc5 {[%clk 0:01:33.7]} 19. Rd3 {[%clk 0:02:13.4]} 19...
Qc4 {[%clk 0:01:04.5]} 20. Rc1 {[%clk 0:02:06.2]} 20... Qd5 {[%clk 0:01:04.2]}
21. Nf3 {[%clk 0:02:06.2]} 21... Qe4 {[%clk 0:00:56.5]} 22. Qd2 {[%clk
0:02:00.1]} 22... Qg6 {[%clk 0:00:26.8]} 23. Rd7 {[%clk 0:01:48.9]} 23... Qh5
{[%clk 0:00:25.2]} 24. Qd3 {[%clk 0:01:37.1]} 24... g6 {[%clk 0:00:22.9]} 25.
Nd2 {[%clk 0:01:25.8]} 25... Bc6 {[%clk 0:00:20.5]} 26. Ne4 {[%clk 0:01:22.1]}
26... Bxe4 {[%clk 0:00:20.7]} 27. Qxe4 {[%clk 0:01:22.5]} 27... Qf5 {[%clk
0:00:21]} 28. Qxa8 {[%clk 0:01:15.2]} 28... Rxa8 {[%clk 0:00:18.5]} 29. Bxf5
{[%clk 0:01:14.2]} 29... exf5 {[%clk 0:00:14.9]} 30. Bxh6 {[%clk 0:01:10.5]}
30... Nb3 {[%clk 0:00:15.5]} 31. Rcd1 {[%clk 0:01:08.8]} 31... Kh7 {[%clk
0:00:09]} 32. Bg5 {[%clk 0:01:07.6]} 32... Kg7 {[%clk 0:00:09.4]} 33. Bf6+
{[%clk 0:01:07.8]} 33... Kh6 {[%clk 0:00:09.9]} 34. R1d3 {[%clk 0:01:07.7]}
34... g5 {[%clk 0:00:09.6]} 35. Rxf7 {[%clk 0:01:06.3]} 35... f4 {[%clk
0:00:09.9]} 36. Rg7 {[%clk 0:01:04.1]} 36... g4 {[%clk 0:00:07.2]} 37. Rxg4
{[%clk 0:01:04.1]} 1-0

[Event "Early-Titled-Tuesday-Blitz-March-26-2024"]
[Site "Chess.com"]
[Date "2024.03.26"]
[Round "11"]
[White "GMT4114"]
[Black "JAN2404"]
[Result "0-1"]
[WhiteElo "1953"]
[BlackElo "1961"]
[TimeControl "180+1"]
[EndTime "10:03:54 PDT"]
[Termination "JAN2404 won on time"]

1. e4 {[%clk 0:03:00.9]} 1... c5 {[%clk 0:03:00]} 2. Nc3 {[%clk 0:03:01]} 2...
d6 {[%clk 0:02:57.4]} 3. d4 {[%clk 0:03:00.9]} 3... cxd4 {[%clk 0:02:57.1]} 4.
Qxd4 {[%clk 0:03:01.8]} 4... Nf6 {[%clk 0:02:56.6]} 5. b3 {[%clk 0:03:01.3]}
5... g6 {[%clk 0:02:55.3]} 6. Bb2 {[%clk 0:03:00.5]} 6... Bg7 {[%clk 0:02:55.8]}
7. O-O-O {[%clk 0:02:58.7]} 7... O-O {[%clk 0:02:53]} 8. f3 {[%clk 0:02:54.2]}
8... Nc6 {[%clk 0:02:52.8]} 9. Qd2 {[%clk 0:02:53.9]} 9... a5 {[%clk 0:02:44.7]}
10. Bb5 {[%clk 0:02:31.4]} 10... Bd7 {[%clk 0:02:43.6]} 11. Nge2 {[%clk
0:02:20.3]} 11... Rc8 {[%clk 0:02:41.2]} 12. Kb1 {[%clk 0:02:13]} 12... Qb6
{[%clk 0:02:40.5]} 13. g4 {[%clk 0:02:03.2]} 13... Ne5 {[%clk 0:02:18.7]} 14.
Bxd7 {[%clk 0:02:00.3]} 14... Nfxd7 {[%clk 0:02:18.2]} 15. Nd4 {[%clk
0:01:48.8]} 15... Nc5 {[%clk 0:02:15.6]} 16. a3 {[%clk 0:01:35.2]} 16... a4
{[%clk 0:01:55.4]} 17. b4 {[%clk 0:01:34.1]} 17... Ne6 {[%clk 0:01:54.8]} 18.
Ncb5 {[%clk 0:00:23.5]} 18... Nc4 {[%clk 0:01:44.8]} 19. Qd3 {[%clk 0:00:18.8]}
19... Nxb2 {[%clk 0:01:39.7]} 20. Kxb2 {[%clk 0:00:19.7]} 20... Rfd8 {[%clk
0:00:56.1]} 21. c3 {[%clk 0:00:19.7]} 21... d5 {[%clk 0:00:51.9]} 22. e5 {[%clk
0:00:01.3]} 22... Nxd4 {[%clk 0:00:38.9]} 0-1

[Event "Early-Titled-Tuesday-Blitz-March-26-2024"]
[Site "Chess.com"]
[Date "2024.03.26"]
[Round "11"]
[White "only_strong_moves"]
[Black "ACollins05"]
[Result "1-0"]
[WhiteElo "2687"]
[BlackElo "2512"]
[TimeControl "180+1"]
[EndTime "10:03:57 PDT"]
[Termination "only_strong_moves won by checkmate"]

1. Nc3 {[%clk 0:03:00.9]} 1... Nf6 {[%clk 0:02:55.1]} 2. e4 {[%clk 0:03:00.5]}
2... e5 {[%clk 0:02:53.7]} 3. Bc4 {[%clk 0:03:00.6]} 3... Nxe4 {[%clk
0:02:52.2]} 4. Qh5 {[%clk 0:02:59.9]} 4... Nd6 {[%clk 0:02:45.3]} 5. Qxe5+
{[%clk 0:03:00.4]} 5... Qe7 {[%clk 0:02:45.6]} 6. Qxe7+ {[%clk 0:03:00.4]} 6...
Bxe7 {[%clk 0:02:46.5]} 7. Bb3 {[%clk 0:02:58.5]} 7... O-O {[%clk 0:02:46.3]} 8.
Nf3 {[%clk 0:02:57.9]} 8... c6 {[%clk 0:02:44.8]} 9. O-O {[%clk 0:02:58.3]} 9...
Nf5 {[%clk 0:02:41.3]} 10. d4 {[%clk 0:02:56.4]} 10... d5 {[%clk 0:02:40.7]} 11.
Re1 {[%clk 0:02:56.1]} 11... Bf6 {[%clk 0:02:40.8]} 12. Ne2 {[%clk 0:02:53.8]}
12... Re8 {[%clk 0:02:38.6]} 13. c3 {[%clk 0:02:53.9]} 13... Nd6 {[%clk
0:02:33.5]} 14. Bf4 {[%clk 0:02:51.6]} 14... Ne4 {[%clk 0:02:33.6]} 15. Ne5
{[%clk 0:02:49.2]} 15... Bf5 {[%clk 0:02:30]} 16. f3 {[%clk 0:02:46.6]} 16...
Ng5 {[%clk 0:02:27]} 17. Ng3 {[%clk 0:02:39.8]} 17... Ne6 {[%clk 0:02:21.4]} 18.
Nxf5 {[%clk 0:02:24.4]} 18... Nxf4 {[%clk 0:02:21]} 19. Nd3 {[%clk 0:02:25.1]}
19... Ne6 {[%clk 0:02:20]} 20. Nd6 {[%clk 0:02:22.2]} 20... Re7 {[%clk
0:02:17.9]} 21. f4 {[%clk 0:02:21.5]} 21... Rd7 {[%clk 0:02:07.4]} 22. Nf5
{[%clk 0:02:16.4]} 22... Na6 {[%clk 0:02:04]} 23. Ne3 {[%clk 0:02:16.5]} 23...
Nac7 {[%clk 0:01:59.8]} 24. Ng4 {[%clk 0:02:16.1]} 24... Ne8 {[%clk 0:01:37.1]}
25. f5 {[%clk 0:02:12.8]} 25... Nf8 {[%clk 0:01:35.8]} 26. Nc5 {[%clk
0:02:13.1]} 26... Rc7 {[%clk 0:01:33.4]} 27. Re2 {[%clk 0:02:11.7]} 27... h5
{[%clk 0:01:31.8]} 28. Nf2 {[%clk 0:02:09.4]} 28... Nd6 {[%clk 0:01:26.6]} 29.
Rae1 {[%clk 0:02:04]} 29... Nxf5 {[%clk 0:01:19.9]} 30. g4 {[%clk 0:01:55.3]}
30... Nh4 {[%clk 0:01:13.9]} 31. Re3 {[%clk 0:01:52.5]} 31... Bg5 {[%clk
0:00:52.9]} 32. Rg3 {[%clk 0:01:51.2]} 32... hxg4 {[%clk 0:00:51.7]} 33. Rxg4
{[%clk 0:01:46.3]} 33... Nf3+ {[%clk 0:00:47.3]} 34. Kh1 {[%clk 0:01:45.3]}
34... Nxe1 {[%clk 0:00:34]} 35. Rxg5 {[%clk 0:01:45.7]} 35... Nf3 {[%clk
0:00:33.4]} 36. Rg4 {[%clk 0:01:41.8]} 36... Nd2 {[%clk 0:00:33.5]} 37. Bc2
{[%clk 0:01:40.1]} 37... Nc4 {[%clk 0:00:33.2]} 38. Rg3 {[%clk 0:01:34]} 38...
Re8 {[%clk 0:00:29.6]} 39. Ncd3 {[%clk 0:01:33.1]} 39... Re3 {[%clk 0:00:26.6]}
40. Rg1 {[%clk 0:01:21.6]} 40... Nxb2 {[%clk 0:00:18]} 41. Nxb2 {[%clk
0:01:20.5]} 41... Re2 {[%clk 0:00:18.5]} 42. Ng4 {[%clk 0:01:16.7]} 42... Rxc2
{[%clk 0:00:16.9]} 43. Nd3 {[%clk 0:01:16.4]} 43... Re7 {[%clk 0:00:14.3]} 44.
Rg3 {[%clk 0:01:15.5]} 44... Rd2 {[%clk 0:00:12.3]} 45. Nf6+ {[%clk 0:01:15.4]}
45... Kh8 {[%clk 0:00:10.5]} 46. Rh3+ {[%clk 0:01:16.3]} 46... Nh7 {[%clk
0:00:10.3]} 47. Rxh7# {[%clk 0:01:17.2]} 1-0

[Event "Early-Titled-Tuesday-Blitz-March-26-2024"]
[Site "Chess.com"]
[Date "2024.03.26"]
[Round "11"]
[White "blitzking1729"]
[Black "1mbl4"]
[Result "1-0"]
[WhiteElo "2765"]
[BlackElo "2592"]
[TimeControl "180+1"]
[EndTime "10:03:59 PDT"]
[Termination "blitzking1729 won by resignation"]

1. c4 {[%clk 0:03:00.9]} 1... Nf6 {[%clk 0:02:59.4]} 2. Nc3 {[%clk 0:03:01.4]}
2... g6 {[%clk 0:02:59.6]} 3. g3 {[%clk 0:03:01.4]} 3... Bg7 {[%clk 0:03:00]} 4.
Bg2 {[%clk 0:03:02.1]} 4... O-O {[%clk 0:03:00.7]} 5. d4 {[%clk 0:03:01.4]} 5...
d6 {[%clk 0:03:01.2]} 6. Nf3 {[%clk 0:03:01.4]} 6... Nbd7 {[%clk 0:03:01.8]} 7.
O-O {[%clk 0:03:01.7]} 7... e5 {[%clk 0:03:02.3]} 8. e4 {[%clk 0:03:02.2]} 8...
exd4 {[%clk 0:03:02.6]} 9. Nxd4 {[%clk 0:03:02.8]} 9... Re8 {[%clk 0:03:03.3]}
10. h3 {[%clk 0:03:02.7]} 10... Nc5 {[%clk 0:03:01.8]} 11. Re1 {[%clk 0:03:03]}
11... Bd7 {[%clk 0:03:00.9]} 12. Rb1 {[%clk 0:02:57.2]} 12... a5 {[%clk
0:02:53]} 13. Ndb5 {[%clk 0:02:43]} 13... Bc6 {[%clk 0:02:48.8]} 14. Qc2 {[%clk
0:02:34.2]} 14... h6 {[%clk 0:02:16.6]} 15. b3 {[%clk 0:02:16.6]} 15... Nfd7
{[%clk 0:02:05.4]} 16. Ba3 {[%clk 0:02:11]} 16... Qc8 {[%clk 0:01:54.5]} 17.
Rbd1 {[%clk 0:02:09.8]} 17... Nf8 {[%clk 0:01:49.1]} 18. f4 {[%clk 0:02:02.1]}
18... b6 {[%clk 0:01:47.5]} 19. Nd5 {[%clk 0:01:56.7]} 19... Bxd5 {[%clk
0:01:39.9]} 20. cxd5 {[%clk 0:01:55.3]} 20... Qd7 {[%clk 0:01:32.6]} 21. Bf1
{[%clk 0:01:50.4]} 21... f5 {[%clk 0:01:26.7]} 22. e5 {[%clk 0:01:22.7]} 22...
dxe5 {[%clk 0:01:24.8]} 23. d6 {[%clk 0:01:21.7]} 23... cxd6 {[%clk 0:00:44.3]}
24. Nxd6 {[%clk 0:01:19.9]} 24... Re7 {[%clk 0:00:35.2]} 25. Nc4 {[%clk
0:01:07]} 25... Qc7 {[%clk 0:00:32.3]} 26. Nxb6 {[%clk 0:01:06.3]} 26... Rd8
{[%clk 0:00:19.7]} 27. Rxd8 {[%clk 0:00:55.1]} 27... Qxd8 {[%clk 0:00:18.5]} 28.
Qxc5 {[%clk 0:00:55.5]} 28... Rc7 {[%clk 0:00:07.8]} 29. Qd5+ {[%clk 0:00:55.6]}
29... Qxd5 {[%clk 0:00:07.6]} 30. Nxd5 {[%clk 0:00:56.3]} 30... Rc2 {[%clk
0:00:08.4]} 31. fxe5 {[%clk 0:00:56.5]} 31... Ne6 {[%clk 0:00:07.9]} 32. Bc4
{[%clk 0:00:55.2]} 1-0

[Event "Early-Titled-Tuesday-Blitz-March-26-2024"]
[Site "Chess.com"]
[Date "2024.03.26"]
[Round "11"]
[White "ploxoi"]
[Black "Kostukov_Alex"]
[Result "1-0"]
[WhiteElo "2432"]
[BlackElo "2295"]
[TimeControl "180+1"]
[EndTime "10:03:59 PDT"]
[Termination "ploxoi won on time"]

1. d4 {[%clk 0:03:00.9]} 1... g6 {[%clk 0:02:48.6]} 2. c4 {[%clk 0:03:00.5]}
2... Bg7 {[%clk 0:02:47]} 3. Nf3 {[%clk 0:03:01]} 3... d6 {[%clk 0:02:47.7]} 4.
e4 {[%clk 0:03:00.5]} 4... e5 {[%clk 0:02:47.4]} 5. d5 {[%clk 0:02:59]} 5... f5
{[%clk 0:02:46.7]} 6. Nc3 {[%clk 0:02:59.2]} 6... Nf6 {[%clk 0:02:46.4]} 7. Bd3
{[%clk 0:02:49.1]} 7... O-O {[%clk 0:02:45.3]} 8. Bg5 {[%clk 0:02:43.6]} 8... h6
{[%clk 0:02:43.2]} 9. Bd2 {[%clk 0:02:43.7]} 9... Na6 {[%clk 0:02:39.2]} 10. Qc2
{[%clk 0:02:18.6]} 10... Nb4 {[%clk 0:02:36.8]} 11. Qb1 {[%clk 0:02:18]} 11...
Nxd3+ {[%clk 0:02:32.2]} 12. Qxd3 {[%clk 0:02:18.9]} 12... fxe4 {[%clk
0:02:32.1]} 13. Nxe4 {[%clk 0:02:19]} 13... Bf5 {[%clk 0:02:16.8]} 14. Nxf6+
{[%clk 0:02:18.2]} 14... Qxf6 {[%clk 0:02:15.1]} 15. Qe3 {[%clk 0:02:10.3]}
15... e4 {[%clk 0:02:12.1]} 16. Bc3 {[%clk 0:02:10.3]} 16... Qf7 {[%clk
0:01:46]} 17. Nd4 {[%clk 0:02:05.3]} 17... c5 {[%clk 0:01:22.2]} 18. Nb5 {[%clk
0:01:56.3]} 18... Qe7 {[%clk 0:01:08.7]} 19. O-O {[%clk 0:01:51.9]} 19... a6
{[%clk 0:01:05.9]} 20. Bxg7 {[%clk 0:01:52.5]} 20... Kxg7 {[%clk 0:01:05.1]} 21.
Nc3 {[%clk 0:01:53.1]} 21... Rae8 {[%clk 0:01:04]} 22. Rae1 {[%clk 0:01:51.9]}
22... Qf6 {[%clk 0:00:54.2]} 23. Qg3 {[%clk 0:01:43.4]} 23... Re5 {[%clk
0:00:30.6]} 24. Re3 {[%clk 0:01:40.9]} 24... Rfe8 {[%clk 0:00:28.6]} 25. Rfe1
{[%clk 0:01:39.4]} 25... h5 {[%clk 0:00:24.1]} 26. h4 {[%clk 0:01:37.3]} 26...
R8e7 {[%clk 0:00:17.6]} 27. Qf4 {[%clk 0:01:37.3]} 27... Kf7 {[%clk 0:00:11.3]}
28. g3 {[%clk 0:01:35.4]} 28... Kg7 {[%clk 0:00:10.8]} 29. R1e2 {[%clk
0:01:33.3]} 29... Bg4 {[%clk 0:00:08]} 30. Qxf6+ {[%clk 0:01:33.3]} 30... Kxf6
{[%clk 0:00:08.1]} 31. Nxe4+ {[%clk 0:01:34]} 31... Rxe4 {[%clk 0:00:07.3]} 32.
Rxe4 {[%clk 0:01:28.7]} 32... Bxe2 {[%clk 0:00:07]} 33. Rf4+ {[%clk 0:01:24.7]}
33... Kg7 {[%clk 0:00:06.8]} 34. b3 {[%clk 0:01:22.9]} 34... Bg4 {[%clk
0:00:04.7]} 35. Kf1 {[%clk 0:01:21.5]} 35... Bh3+ {[%clk 0:00:03.5]} 36. Kg1
{[%clk 0:01:21.8]} 36... Re1+ {[%clk 0:00:02.5]} 37. Kh2 {[%clk 0:01:22]} 37...
Bf5 {[%clk 0:00:03.2]} 38. a3 {[%clk 0:01:12.3]} 1-0

[Event "Early-Titled-Tuesday-Blitz-March-26-2024"]
[Site "Chess.com"]
[Date "2024.03.26"]
[Round "11"]
[White "chess123456s"]
[Black "the_chess_child"]
[Result "0-1"]
[WhiteElo "2597"]
[BlackElo "2860"]
[TimeControl "180+1"]
[EndTime "10:04:04 PDT"]
[Termination "the_chess_child won by resignation"]

1. e4 {[%clk 0:03:00.9]} 1... c5 {[%clk 0:02:59]} 2. Nf3 {[%clk 0:03:00.9]} 2...
e6 {[%clk 0:02:59.7]} 3. g3 {[%clk 0:03:00.2]} 3... Nc6 {[%clk 0:02:57.7]} 4.
Bg2 {[%clk 0:03:00.1]} 4... d6 {[%clk 0:02:57.1]} 5. O-O {[%clk 0:02:57.9]} 5...
Nf6 {[%clk 0:02:57.4]} 6. Re1 {[%clk 0:02:56.7]} 6... Be7 {[%clk 0:02:57.8]} 7.
e5 {[%clk 0:02:56]} 7... dxe5 {[%clk 0:02:57.4]} 8. Nxe5 {[%clk 0:02:56.9]} 8...
Nxe5 {[%clk 0:02:57.7]} 9. Rxe5 {[%clk 0:02:57.8]} 9... O-O {[%clk 0:02:58.2]}
10. d3 {[%clk 0:02:58.2]} 10... Bd6 {[%clk 0:02:58]} 11. Re1 {[%clk 0:02:58]}
11... Rb8 {[%clk 0:02:58.2]} 12. a4 {[%clk 0:02:57.3]} 12... Bd7 {[%clk
0:02:58]} 13. Nd2 {[%clk 0:02:54.7]} 13... b6 {[%clk 0:02:57.3]} 14. Nc4 {[%clk
0:02:54.5]} 14... Bc7 {[%clk 0:02:57.2]} 15. f4 {[%clk 0:02:45.4]} 15... Nd5
{[%clk 0:02:56.8]} 16. Ne5 {[%clk 0:02:43.6]} 16... Be8 {[%clk 0:02:56.5]} 17.
Bd2 {[%clk 0:02:41.3]} 17... Qc8 {[%clk 0:02:52.2]} 18. Qe2 {[%clk 0:02:32.1]}
18... f6 {[%clk 0:02:50.8]} 19. Nc4 {[%clk 0:02:27.9]} 19... Bf7 {[%clk
0:02:50.6]} 20. Qf2 {[%clk 0:02:24.3]} 20... Re8 {[%clk 0:02:50.5]} 21. Re2
{[%clk 0:02:19.1]} 21... Qd7 {[%clk 0:02:49.9]} 22. b3 {[%clk 0:02:13.3]} 22...
a6 {[%clk 0:02:49.5]} 23. Rae1 {[%clk 0:02:12.2]} 23... b5 {[%clk 0:02:49.4]}
24. axb5 {[%clk 0:02:13.1]} 24... axb5 {[%clk 0:02:50.3]} 25. Ne3 {[%clk
0:02:09.6]} 25... Ne7 {[%clk 0:02:50.3]} 26. Bh3 {[%clk 0:02:05.3]} 26... Bb6
{[%clk 0:02:49.8]} 27. Qg2 {[%clk 0:01:53.4]} 27... Nc6 {[%clk 0:02:47.2]} 28.
Bc3 {[%clk 0:01:47]} 28... Nd4 {[%clk 0:02:37.4]} 29. Bxd4 {[%clk 0:01:46.1]}
29... cxd4 {[%clk 0:02:36.9]} 30. Ng4 {[%clk 0:01:41.5]} 30... Ba5 {[%clk
0:02:36.9]} 31. Rf1 {[%clk 0:01:38.8]} 31... Qc7 {[%clk 0:02:26.6]} 32. f5
{[%clk 0:01:33.1]} 32... exf5 {[%clk 0:02:23.9]} 33. Rxf5 {[%clk 0:01:20.8]}
33... Rxe2 {[%clk 0:02:22.2]} 34. Qxe2 {[%clk 0:01:21.7]} 34... Re8 {[%clk
0:02:22.7]} 35. Qf2 {[%clk 0:01:20.3]} 35... Re1+ {[%clk 0:02:07.6]} 36. Bf1
{[%clk 0:01:03.3]} 36... Be6 {[%clk 0:01:59.4]} 37. Rxb5 {[%clk 0:00:16.5]}
37... Bxg4 {[%clk 0:01:54.5]} 38. b4 {[%clk 0:00:16.9]} 38... Rd1 {[%clk
0:01:40.9]} 39. Qxd4 {[%clk 0:00:04.7]} 39... Bh3 {[%clk 0:01:18.7]} 40. Rf5
{[%clk 0:00:03.2]} 40... Bb6 {[%clk 0:01:17.1]} 0-1

[Event "Early-Titled-Tuesday-Blitz-March-26-2024"]
[Site "Chess.com"]
[Date "2024.03.26"]
[Round "11"]
[White "Resignify"]
[Black "nikitakhoroshev"]
[Result "1-0"]
[WhiteElo "2285"]
[BlackElo "2591"]
[TimeControl "180+1"]
[EndTime "10:04:15 PDT"]
[Termination "Resignify won by resignation"]

1. e4 {[%clk 0:03:00.9]} 1... e5 {[%clk 0:02:58.6]} 2. Nf3 {[%clk 0:03:00.4]}
2... Nc6 {[%clk 0:02:56.7]} 3. Bb5 {[%clk 0:03:00.2]} 3... a6 {[%clk 0:02:56.5]}
4. Ba4 {[%clk 0:03:00.5]} 4... Nf6 {[%clk 0:02:56.2]} 5. O-O {[%clk 0:03:00.1]}
5... b5 {[%clk 0:02:56.4]} 6. Bb3 {[%clk 0:02:59.6]} 6... Bb7 {[%clk 0:02:56.7]}
7. Re1 {[%clk 0:02:55.2]} 7... Bc5 {[%clk 0:02:56.1]} 8. c3 {[%clk 0:02:54.6]}
8... d6 {[%clk 0:02:56.3]} 9. d3 {[%clk 0:02:53]} 9... h6 {[%clk 0:02:51]} 10.
Be3 {[%clk 0:02:52]} 10... Ba7 {[%clk 0:02:48.9]} 11. Nbd2 {[%clk 0:02:49.3]}
11... Ng4 {[%clk 0:02:48.1]} 12. Bxa7 {[%clk 0:02:48.3]} 12... Nxa7 {[%clk
0:02:45.7]} 13. Nf1 {[%clk 0:02:29.2]} 13... c5 {[%clk 0:02:44.3]} 14. Ne3
{[%clk 0:02:27.8]} 14... Nxe3 {[%clk 0:02:42.5]} 15. fxe3 {[%clk 0:02:25.4]}
15... O-O {[%clk 0:02:41.9]} 16. Rf1 {[%clk 0:02:23.9]} 16... Rc8 {[%clk
0:02:37.7]} 17. Bd5 {[%clk 0:02:22.6]} 17... Bxd5 {[%clk 0:02:33.7]} 18. exd5
{[%clk 0:02:23.4]} 18... f5 {[%clk 0:02:33]} 19. a4 {[%clk 0:02:18.9]} 19... g5
{[%clk 0:02:28.1]} 20. axb5 {[%clk 0:02:12.8]} 20... Nxb5 {[%clk 0:02:27.5]} 21.
Rxa6 {[%clk 0:02:11.2]} 21... Ra8 {[%clk 0:02:26.2]} 22. Qa4 {[%clk 0:02:05.4]}
22... Rxa6 {[%clk 0:02:20.2]} 23. Qxa6 {[%clk 0:02:04]} 23... Nc7 {[%clk
0:02:20.4]} 24. Qc6 {[%clk 0:01:57.7]} 24... Rf7 {[%clk 0:02:14.4]} 25. Nd2
{[%clk 0:01:56.3]} 25... Qa8 {[%clk 0:02:06.9]} 26. Nc4 {[%clk 0:01:49.8]} 26...
Qxc6 {[%clk 0:01:47.1]} 27. dxc6 {[%clk 0:01:50.7]} 27... Nb5 {[%clk 0:01:39.6]}
28. Ra1 {[%clk 0:01:43.1]} 28... f4 {[%clk 0:01:38.6]} 29. e4 {[%clk 0:01:29.3]}
29... Rc7 {[%clk 0:01:36.8]} 30. Ra8+ {[%clk 0:01:22.2]} 30... Kg7 {[%clk
0:01:33.5]} 31. Rb8 {[%clk 0:01:22.8]} 31... Na7 {[%clk 0:01:32.4]} 32. Rb7
{[%clk 0:01:20]} 32... Rxb7 {[%clk 0:01:28.6]} 33. cxb7 {[%clk 0:01:19]} 33...
Nc6 {[%clk 0:01:29.2]} 34. Nxd6 {[%clk 0:01:15.2]} 34... Kf6 {[%clk 0:01:25.7]}
35. b4 {[%clk 0:00:54.8]} 35... cxb4 {[%clk 0:01:24.3]} 36. cxb4 {[%clk
0:00:53.9]} 36... h5 {[%clk 0:01:24.4]} 37. b5 {[%clk 0:00:52.8]} 37... Nb8
{[%clk 0:01:24.6]} 38. Nc4 {[%clk 0:00:41.9]} 38... Ke6 {[%clk 0:01:24.8]} 39.
Kf2 {[%clk 0:00:36]} 39... g4 {[%clk 0:01:19.4]} 40. h3 {[%clk 0:00:33.1]} 40...
Kd7 {[%clk 0:01:15.4]} 41. Nxe5+ {[%clk 0:00:31.9]} 41... Kc7 {[%clk 0:01:14.5]}
42. hxg4 {[%clk 0:00:31.4]} 42... hxg4 {[%clk 0:01:14.3]} 43. Nc6 {[%clk
0:00:17.5]} 43... Kxb7 {[%clk 0:01:04.4]} 44. Nxb8 {[%clk 0:00:17.2]} 44... Kxb8
{[%clk 0:01:04.3]} 45. e5 {[%clk 0:00:17.5]} 45... Kb7 {[%clk 0:01:04.8]} 46. e6
{[%clk 0:00:17.8]} 1-0

[Event "Early-Titled-Tuesday-Blitz-March-26-2024"]
[Site "Chess.com"]
[Date "2024.03.26"]
[Round "11"]
[White "jefferyx"]
[Black "frederiksvane"]
[Result "1-0"]
[WhiteElo "3098"]
[BlackElo "2990"]
[TimeControl "180+1"]
[EndTime "10:04:16 PDT"]
[Termination "jefferyx won by checkmate"]

1. b4 {[%clk 0:03:00.9]} 1... e6 {[%clk 0:02:59]} 2. Bb2 {[%clk 0:03:01.1]} 2...
Nf6 {[%clk 0:02:58.8]} 3. a3 {[%clk 0:03:01.5]} 3... a5 {[%clk 0:02:57.2]} 4. b5
{[%clk 0:03:01.7]} 4... d6 {[%clk 0:02:48.7]} 5. e3 {[%clk 0:03:02.2]} 5... Nbd7
{[%clk 0:02:47.7]} 6. Nf3 {[%clk 0:03:02.5]} 6... g6 {[%clk 0:02:47]} 7. c4
{[%clk 0:03:02.6]} 7... Bg7 {[%clk 0:02:47.4]} 8. d4 {[%clk 0:03:03.1]} 8... O-O
{[%clk 0:02:47.8]} 9. Nc3 {[%clk 0:03:03.5]} 9... Qe7 {[%clk 0:02:47.6]} 10. Be2
{[%clk 0:03:04]} 10... e5 {[%clk 0:02:48]} 11. a4 {[%clk 0:03:04.3]} 11... exd4
{[%clk 0:02:42.6]} 12. exd4 {[%clk 0:03:04.2]} 12... Re8 {[%clk 0:02:34.9]} 13.
O-O {[%clk 0:03:04.3]} 13... Ne4 {[%clk 0:02:33.3]} 14. Bd3 {[%clk 0:02:56.1]}
14... Nxc3 {[%clk 0:02:33.3]} 15. Bxc3 {[%clk 0:02:57]} 15... Nc5 {[%clk
0:02:28.2]} 16. Bc2 {[%clk 0:02:47.4]} 16... Qf6 {[%clk 0:01:51]} 17. Ra3 {[%clk
0:02:31.7]} 17... Ne4 {[%clk 0:01:51.2]} 18. Ba1 {[%clk 0:02:16.7]} 18... Bg4
{[%clk 0:01:45.6]} 19. h3 {[%clk 0:02:13.8]} 19... Bxf3 {[%clk 0:01:38.4]} 20.
Rxf3 {[%clk 0:02:14.7]} 20... Qg5 {[%clk 0:01:34.6]} 21. Re1 {[%clk 0:02:09]}
21... Nd2 {[%clk 0:01:29.3]} 22. Rg3 {[%clk 0:02:00.4]} 22... Qh6 {[%clk
0:01:19.6]} 23. Bd3 {[%clk 0:01:22.2]} 23... Nb3 {[%clk 0:01:18.3]} 24. Bxg6
{[%clk 0:01:18.1]} 24... Nxa1 {[%clk 0:01:10.2]} 25. Be4 {[%clk 0:01:15.2]}
25... d5 {[%clk 0:00:41.6]} 26. cxd5 {[%clk 0:01:06.1]} 26... Re7 {[%clk
0:00:34.7]} 27. Qxa1 {[%clk 0:01:03.2]} 27... Rae8 {[%clk 0:00:34.3]} 28. Rge3
{[%clk 0:01:02.6]} 28... f5 {[%clk 0:00:21.7]} 29. Bxf5 {[%clk 0:01:02.8]} 29...
Rxe3 {[%clk 0:00:22.1]} 30. fxe3 {[%clk 0:01:03.2]} 30... Rxe3 {[%clk
0:00:22.8]} 31. Kh1 {[%clk 0:00:43.7]} 31... Bxd4 {[%clk 0:00:14.5]} 32. Be6+
{[%clk 0:00:44]} 32... Kf8 {[%clk 0:00:15]} 33. Rf1+ {[%clk 0:00:44]} 33... Ke7
{[%clk 0:00:01.8]} 34. Qxd4 {[%clk 0:00:43.6]} 34... Rg3 {[%clk 0:00:01.6]} 35.
Qc5+ {[%clk 0:00:43.2]} 35... Kd8 {[%clk 0:00:02.1]} 36. Rf8+ {[%clk 0:00:42.6]}
36... Qxf8 {[%clk 0:00:01.5]} 37. Qxf8# {[%clk 0:00:43.5]} 1-0